[Event "Titled Tuesday Blitz November 08 Early 2022"]
[White "Baskakov, Egor"]
[Black "Bluebaum, Matthias"]
[WhiteFideId "24197866"]
[BlackFideId "24651516"]
[WhiteElo "2211"]
[BlackElo "2633"]
[Result "1-0"]
[Round "04"]
[TimeControl "180+1"]
[Date "2022.11.08"]
[WhiteClock "0:00:26"]
[BlackClock "0:00:32"]

1. c4 {[%clk 0:03:00]}  e6 {[%clk 0:03:00]} 2. Nc3 {[%clk 0:02:59]}  d5 {[%clk 0:03:00]} 3. d4 {[%clk 0:02:59]}  Nf6 {[%clk 0:03:00]} 4. cxd5 {[%clk 0:02:58]}  exd5 {[%clk 0:03:01]} 5. g3 {[%clk 0:02:58]}  c6 {[%clk 0:03:00]} 6. Bg2 {[%clk 0:02:59]}  Bf5 {[%clk 0:03:00]} 7. Nf3 {[%clk 0:02:59]}  Nbd7 {[%clk 0:03:00]} 8. Nh4 {[%clk 0:02:59]}  Be6 {[%clk 0:03:00]} 9. O-O {[%clk 0:02:57]}  Be7 {[%clk 0:02:56]} 10. f3 {[%clk 0:02:56]}  Nh5 {[%clk 0:02:46]} 11. e4 {[%clk 0:02:52]}  Bxh4 {[%clk 0:02:38]} 12. gxh4 {[%clk 0:02:53]}  Qxh4 {[%clk 0:02:39]} 13. exd5 {[%clk 0:02:54]}  cxd5 {[%clk 0:02:40]} 14. f4 {[%clk 0:02:54]}  g6 {[%clk 0:01:57]} 15. f5 {[%clk 0:02:42]}  gxf5 {[%clk 0:01:55]} 16. Nxd5 {[%clk 0:02:42]}  Bxd5 {[%clk 0:01:18]} 17. Bxd5 {[%clk 0:02:43]}  Rg8+ {[%clk 0:01:18]} 18. Bg2 {[%clk 0:02:41]}  Rxg2+ {[%clk 0:01:14]} 19. Kxg2 {[%clk 0:02:41]}  O-O-O {[%clk 0:01:15]} 20. Qc2+ {[%clk 0:01:47]}  Kb8 {[%clk 0:01:14]} 21. Qxf5 {[%clk 0:01:47]}  Rg8+ {[%clk 0:00:58]} 22. Kf3 {[%clk 0:01:47]}  Qxd4 {[%clk 0:00:54]} 23. Qxh5 {[%clk 0:01:35]}  Ka8 {[%clk 0:00:36]} 24. Bf4 {[%clk 0:00:51]}  Qd3+ {[%clk 0:00:36]} 25. Kf2 {[%clk 0:00:51]}  Qc2+ {[%clk 0:00:34]} 26. Qe2 {[%clk 0:00:49]}  Rg2+ {[%clk 0:00:34]} 27. Kxg2 {[%clk 0:00:50]}  Qxe2+ {[%clk 0:00:35]} 28. Kg1 {[%clk 0:00:47]}  a5 {[%clk 0:00:27]} 29. Rae1 {[%clk 0:00:45]}  Qxb2 {[%clk 0:00:24]} 30. Re8+ {[%clk 0:00:38]}  Ka7 {[%clk 0:00:25]} 31. Be3+ {[%clk 0:00:38]}  Ka6 {[%clk 0:00:24]} 32. Re7 {[%clk 0:00:23]}  Ne5 {[%clk 0:00:18]} 33. Rf6+ {[%clk 0:00:19]}  Nc6 {[%clk 0:00:16]} 34. Rxc6+ {[%clk 0:00:19]}  bxc6 {[%clk 0:00:13]} 35. Ra7+ {[%clk 0:00:20]}  Kb5 {[%clk 0:00:14]} 36. Rb7+ {[%clk 0:00:20]}  Ka4 {[%clk 0:00:15]} 37. Rxb2 {[%clk 0:00:21]}  c5 {[%clk 0:00:16]} 38. Bxc5 {[%clk 0:00:21]}  f5 {[%clk 0:00:16]} 39. Rf2 {[%clk 0:00:21]}  f4 {[%clk 0:00:17]} 40. Rxf4+ {[%clk 0:00:21]}  Kb5 {[%clk 0:00:18]} 41. Bf8 {[%clk 0:00:22]}  h5 {[%clk 0:00:19]} 42. a3 {[%clk 0:00:22]}  h4 {[%clk 0:00:19]} 43. Rxh4 {[%clk 0:00:23]}  Kc6 {[%clk 0:00:20]} 44. Ra4 {[%clk 0:00:23]}  Kb7 {[%clk 0:00:21]} 45. Rxa5 {[%clk 0:00:23]}  Kb6 {[%clk 0:00:21]} 46. Rd5 {[%clk 0:00:23]}  Kc6 {[%clk 0:00:22]} 47. Rd1 {[%clk 0:00:24]}  Kb7 {[%clk 0:00:23]} 48. h4 {[%clk 0:00:24]}  Ka6 {[%clk 0:00:24]} 49. h5 {[%clk 0:00:25]}  Ka5 {[%clk 0:00:25]} 50. h6 {[%clk 0:00:25]}  Ka4 {[%clk 0:00:26]} 51. h7 {[%clk 0:00:26]}  Kb3 {[%clk 0:00:27]} 52. h8=Q {[%clk 0:00:26]}  Ka2 {[%clk 0:00:28]} 53. Qh2+ {[%clk 0:00:26]}  Kb3 {[%clk 0:00:29]} 54. Rb1+ {[%clk 0:00:26]}  Ka4 {[%clk 0:00:30]} 55. Qf4+ {[%clk 0:00:25]}  Ka5 {[%clk 0:00:30]} 56. Qf5+ {[%clk 0:00:26]}  Ka6 {[%clk 0:00:30]} 57. Qe6+ {[%clk 0:00:26]}  Ka7 {[%clk 0:00:31]} 58. Bc5+ {[%clk 0:00:26]}  Ka8 {[%clk 0:00:32]} 59. Qd5# {[%clk 0:00:26]} 1-0


[Site "https://www.chess.com"]

[Event "Titled Tuesday Blitz November 08 Early 2022"]
[White "Begunov, Konstantin"]
[Black "Zainullina, Nataliya"]
[WhiteFideId "4118510"]
[BlackFideId "4145488"]
[WhiteElo "2140"]
[BlackElo "2096"]
[Result "1-0"]
[Round "04"]
[TimeControl "180+1"]
[Date "2022.11.09"]
[WhiteClock "0:00:35"]
[BlackClock "0:00:20"]

1. d4 {[%clk 0:02:44]}  Nf6 {[%clk 0:02:59]} 2. c4 {[%clk 0:02:44]}  g6 {[%clk 0:02:59]} 3. f3 {[%clk 0:02:44]}  Bg7 {[%clk 0:02:59]} 4. e4 {[%clk 0:02:44]}  d6 {[%clk 0:02:58]} 5. Nc3 {[%clk 0:02:45]}  O-O {[%clk 0:02:58]} 6. Be3 {[%clk 0:02:45]}  e5 {[%clk 0:02:59]} 7. Nge2 {[%clk 0:02:45]}  exd4 {[%clk 0:02:57]} 8. Nxd4 {[%clk 0:02:46]}  Nc6 {[%clk 0:02:56]} 9. Qd2 {[%clk 0:02:47]}  Nxd4 {[%clk 0:02:56]} 10. Bxd4 {[%clk 0:02:48]}  c6 {[%clk 0:02:54]} 11. Be2 {[%clk 0:02:48]}  d5 {[%clk 0:02:54]} 12. exd5 {[%clk 0:02:44]}  cxd5 {[%clk 0:02:54]} 13. c5 {[%clk 0:02:45]}  Bf5 {[%clk 0:02:37]} 14. O-O {[%clk 0:02:44]}  h5 {[%clk 0:02:24]} 15. Rfd1 {[%clk 0:02:40]}  Be6 {[%clk 0:01:46]} 16. Nb5 {[%clk 0:02:35]}  b6 {[%clk 0:01:30]} 17. Rac1 {[%clk 0:02:08]}  bxc5 {[%clk 0:01:27]} 18. Bxc5 {[%clk 0:02:07]}  Re8 {[%clk 0:01:25]} 19. Bd4 {[%clk 0:01:19]}  Re7 {[%clk 0:00:41]} 20. Qf4 {[%clk 0:01:07]}  Rd7 {[%clk 0:00:24]} 21. Nc7 {[%clk 0:00:36]}  Rc8 {[%clk 0:00:20]} 22. Nxe6 {[%clk 0:00:36]}  fxe6 {[%clk 0:00:20]} 23. Rxc8 {[%clk 0:00:35]}  Qxc8 {[%clk 0:00:20]} 24. Bxf6 {[%clk 0:00:35]} 1-0


[Site "https://www.chess.com"]

[Event "Titled Tuesday Blitz November 08 Early 2022"]
[White "Chigaev, Maksim"]
[Black "Postny, Evgeny"]
[WhiteFideId "4108116"]
[BlackFideId "2804344"]
[WhiteElo "2541"]
[BlackElo "2476"]
[Result "1-0"]
[Round "04"]
[TimeControl "180+1"]
[Date "2022.11.08"]
[WhiteClock "0:00:02"]
[BlackClock "0:00:01"]

1. Nf3 {[%clk 0:03:00]}  d5 {[%clk 0:02:58]} 2. c4 {[%clk 0:03:01]}  c6 {[%clk 0:02:57]} 3. e3 {[%clk 0:02:53]}  Bg4 {[%clk 0:02:57]} 4. Nc3 {[%clk 0:02:44]}  e6 {[%clk 0:02:53]} 5. Qb3 {[%clk 0:02:39]}  Qb6 {[%clk 0:02:52]} 6. Ne5 {[%clk 0:02:38]}  Bf5 {[%clk 0:02:47]} 7. d4 {[%clk 0:02:39]}  Nf6 {[%clk 0:02:43]} 8. Bd2 {[%clk 0:02:36]}  Nbd7 {[%clk 0:02:41]} 9. Nxd7 {[%clk 0:02:20]}  Nxd7 {[%clk 0:02:42]} 10. Be2 {[%clk 0:02:20]}  Qxb3 {[%clk 0:02:36]} 11. axb3 {[%clk 0:02:21]}  Bc2 {[%clk 0:02:36]} 12. Bd1 {[%clk 0:02:19]}  Bd3 {[%clk 0:02:27]} 13. c5 {[%clk 0:02:19]}  e5 {[%clk 0:02:23]} 14. b4 {[%clk 0:02:18]}  a6 {[%clk 0:02:22]} 15. b5 {[%clk 0:01:46]}  Bxb5 {[%clk 0:01:37]} 16. Nxb5 {[%clk 0:01:45]}  cxb5 {[%clk 0:01:38]} 17. Bb3 {[%clk 0:01:45]}  exd4 {[%clk 0:01:37]} 18. exd4 {[%clk 0:01:46]}  Nf6 {[%clk 0:01:35]} 19. O-O-O {[%clk 0:01:36]}  O-O-O {[%clk 0:01:32]} 20. Rhe1 {[%clk 0:01:21]}  Rd7 {[%clk 0:01:11]} 21. Bc2 {[%clk 0:01:08]}  g6 {[%clk 0:01:07]} 22. Bg5 {[%clk 0:01:05]}  Bg7 {[%clk 0:01:07]} 23. f3 {[%clk 0:01:05]}  Re8 {[%clk 0:00:56]} 24. Bb3 {[%clk 0:00:48]}  Rde7 {[%clk 0:00:35]} 25. Rxe7 {[%clk 0:00:47]}  Rxe7 {[%clk 0:00:36]} 26. Kd2 {[%clk 0:00:47]}  Kc7 {[%clk 0:00:28]} 27. g4 {[%clk 0:00:25]}  Kc6 {[%clk 0:00:27]} 28. Kd3 {[%clk 0:00:24]}  Re6 {[%clk 0:00:21]} 29. h4 {[%clk 0:00:06]}  Nd7 {[%clk 0:00:19]} 30. Be3 {[%clk 0:00:03]}  Nf8 {[%clk 0:00:15]} 31. Rg1 {[%clk 0:00:03]}  Re8 {[%clk 0:00:15]} 32. f4 {[%clk 0:00:03]}  Re4 {[%clk 0:00:11]} 33. f5 {[%clk 0:00:03]}  Nd7 {[%clk 0:00:10]} 34. h5 {[%clk 0:00:03]}  g5 {[%clk 0:00:09]} 35. Bc2 {[%clk 0:00:02]}  h6 {[%clk 0:00:09]} 36. Kd2 {[%clk 0:00:02]}  Rxd4+ {[%clk 0:00:05]} 37. Bxd4 {[%clk 0:00:02]}  Bxd4 {[%clk 0:00:06]} 38. Re1 {[%clk 0:00:03]}  Ne5 {[%clk 0:00:06]} 39. Bd1 {[%clk 0:00:02]}  Kxc5 {[%clk 0:00:05]} 40. b3 {[%clk 0:00:02]}  Kd6 {[%clk 0:00:05]} 41. Be2 {[%clk 0:00:02]}  f6 {[%clk 0:00:06]} 42. Rc1 {[%clk 0:00:03]}  Bc5 {[%clk 0:00:06]} 43. Rd1 {[%clk 0:00:03]}  b4 {[%clk 0:00:05]} 44. Kc2 {[%clk 0:00:03]}  a5 {[%clk 0:00:05]} 45. Bc4 {[%clk 0:00:03]}  d4 {[%clk 0:00:03]} 46. Be2 {[%clk 0:00:02]}  Kd5 {[%clk 0:00:02]} 47. Ra1 {[%clk 0:00:03]}  b6 {[%clk 0:00:02]} 48. Re1 {[%clk 0:00:03]}  Ke4 {[%clk 0:00:02]} 49. Bc4+ {[%clk 0:00:03]}  Kf4 {[%clk 0:00:02]} 50. Be2 {[%clk 0:00:02]}  Kg3 {[%clk 0:00:02]} 51. Bd1 {[%clk 0:00:01]}  Kf2 {[%clk 0:00:02]} 52. Rxe5 {[%clk 0:00:02]}  fxe5 {[%clk 0:00:02]} 53. Kd3 {[%clk 0:00:02]}  Be7 {[%clk 0:00:02]} 54. Bc2 {[%clk 0:00:02]}  Kf3 {[%clk 0:00:01]} 55. Bd1+ {[%clk 0:00:02]} 1-0


[Site "https://www.chess.com"]

[Event "Titled Tuesday Blitz November 08 Early 2022"]
[White "Concio, Michael Jr."]
[Black "Koridze, Lile"]
[WhiteFideId "5217873"]
[BlackFideId "13612514"]
[WhiteElo "2236"]
[BlackElo "2050"]
[Result "0-1"]
[Round "04"]
[TimeControl "180+1"]
[Date "2022.11.09"]
[WhiteClock "0:00:01"]
[BlackClock "0:00:27"]

1. e4 {[%clk 0:02:56]}  c5 {[%clk 0:02:59]} 2. Ne2 {[%clk 0:02:55]}  d6 {[%clk 0:02:58]} 3. Nbc3 {[%clk 0:02:50]}  Nf6 {[%clk 0:02:56]} 4. g3 {[%clk 0:02:51]}  g6 {[%clk 0:02:55]} 5. Bg2 {[%clk 0:02:51]}  Bg7 {[%clk 0:02:55]} 6. d3 {[%clk 0:02:51]}  O-O {[%clk 0:02:55]} 7. h3 {[%clk 0:02:52]}  Nc6 {[%clk 0:02:54]} 8. Be3 {[%clk 0:02:53]}  Rb8 {[%clk 0:02:54]} 9. d4 {[%clk 0:02:48]}  cxd4 {[%clk 0:02:54]} 10. Nxd4 {[%clk 0:02:49]}  a6 {[%clk 0:02:53]} 11. a4 {[%clk 0:02:47]}  Nd7 {[%clk 0:02:52]} 12. O-O {[%clk 0:02:41]}  Nde5 {[%clk 0:02:47]} 13. b3 {[%clk 0:02:39]}  Nxd4 {[%clk 0:02:31]} 14. Bxd4 {[%clk 0:02:28]}  Bd7 {[%clk 0:02:16]} 15. Nd5 {[%clk 0:02:21]}  e6 {[%clk 0:02:05]} 16. Nb6 {[%clk 0:02:05]}  Bc6 {[%clk 0:01:57]} 17. Kh2 {[%clk 0:01:54]}  Qf6 {[%clk 0:01:40]} 18. c3 {[%clk 0:01:50]}  Qe7 {[%clk 0:01:36]} 19. f4 {[%clk 0:01:34]}  Nd7 {[%clk 0:01:35]} 20. Bxg7 {[%clk 0:01:34]}  Kxg7 {[%clk 0:01:35]} 21. Nc4 {[%clk 0:01:35]}  Nc5 {[%clk 0:01:21]} 22. b4 {[%clk 0:01:34]}  Nxe4 {[%clk 0:01:17]} 23. Bxe4 {[%clk 0:00:49]}  Bxe4 {[%clk 0:01:16]} 24. Qxd6 {[%clk 0:00:36]}  Qf6 {[%clk 0:01:07]} 25. Ne5 {[%clk 0:00:18]}  Rfd8 {[%clk 0:01:07]} 26. Qb6 {[%clk 0:00:17]}  Rbc8 {[%clk 0:00:57]} 27. Qe3 {[%clk 0:00:14]}  Bd5 {[%clk 0:00:53]} 28. Rfd1 {[%clk 0:00:13]}  h5 {[%clk 0:00:50]} 29. Rd4 {[%clk 0:00:11]}  Bc6 {[%clk 0:00:48]} 30. Rad1 {[%clk 0:00:12]}  Rxd4 {[%clk 0:00:46]} 31. Rxd4 {[%clk 0:00:08]}  Bxa4 {[%clk 0:00:47]} 32. Qf3 {[%clk 0:00:03]}  Bc6 {[%clk 0:00:44]} 33. Qd3 {[%clk 0:00:03]}  Qe7 {[%clk 0:00:34]} 34. Rd6 {[%clk 0:00:03]}  Bb5 {[%clk 0:00:33]} 35. Qd4 {[%clk 0:00:03]}  Qf6 {[%clk 0:00:32]} 36. c4 {[%clk 0:00:02]}  Bc6 {[%clk 0:00:28]} 37. c5 {[%clk 0:00:03]}  Bd5 {[%clk 0:00:27]} 38. Qd3 {[%clk 0:00:02]}  a5 {[%clk 0:00:27]} 39. Nd7 {[%clk 0:00:02]}  Qb2+ {[%clk 0:00:26]} 40. Kg1 {[%clk 0:00:01]}  Qg2# {[%clk 0:00:27]} 0-1


[Site "https://www.chess.com"]

[Event "Titled Tuesday Blitz November 08 Early 2022"]
[White "D`Arruda, Ricardo D."]
[Black "Wirig, Anthony"]
[WhiteFideId "100692"]
[BlackFideId "615013"]
[WhiteElo "2488"]
[BlackElo "2487"]
[Result "1-0"]
[Round "04"]
[TimeControl "180+1"]
[Date "2022.11.09"]
[WhiteClock "0:00:18"]
[BlackClock "0:00:01"]

1. d4 {[%clk 0:02:56]}  Nf6 {[%clk 0:02:49]} 2. Nf3 {[%clk 0:02:54]}  e6 {[%clk 0:02:50]} 3. c4 {[%clk 0:02:53]}  Bb4+ {[%clk 0:02:49]} 4. Nbd2 {[%clk 0:02:53]}  O-O {[%clk 0:02:49]} 5. a3 {[%clk 0:02:53]}  Be7 {[%clk 0:02:48]} 6. e4 {[%clk 0:02:52]}  d6 {[%clk 0:02:48]} 7. Bd3 {[%clk 0:02:52]}  Nfd7 {[%clk 0:02:48]} 8. O-O {[%clk 0:02:52]}  e5 {[%clk 0:02:49]} 9. b4 {[%clk 0:02:51]}  a5 {[%clk 0:02:49]} 10. Bb2 {[%clk 0:02:50]}  Bf6 {[%clk 0:02:41]} 11. d5 {[%clk 0:02:46]}  g6 {[%clk 0:02:39]} 12. Qc2 {[%clk 0:02:43]}  c6 {[%clk 0:02:33]} 13. c5 {[%clk 0:02:39]}  dxc5 {[%clk 0:02:21]} 14. bxc5 {[%clk 0:02:40]}  Na6 {[%clk 0:02:20]} 15. Bxa6 {[%clk 0:02:29]}  Rxa6 {[%clk 0:02:21]} 16. Rfd1 {[%clk 0:02:16]}  Qe7 {[%clk 0:02:05]} 17. Rac1 {[%clk 0:02:14]}  Bg7 {[%clk 0:02:00]} 18. Nc4 {[%clk 0:02:10]}  Qxc5 {[%clk 0:01:48]} 19. Ncxe5 {[%clk 0:02:03]}  Qxc2 {[%clk 0:01:44]} 20. Rxc2 {[%clk 0:02:04]}  Nxe5 {[%clk 0:01:28]} 21. Nxe5 {[%clk 0:02:03]}  Re8 {[%clk 0:01:04]} 22. f4 {[%clk 0:02:03]}  cxd5 {[%clk 0:00:58]} 23. exd5 {[%clk 0:01:53]}  Bf5 {[%clk 0:00:50]} 24. Rc7 {[%clk 0:01:51]}  Rb6 {[%clk 0:00:32]} 25. Bd4 {[%clk 0:01:49]}  Rd6 {[%clk 0:00:28]} 26. Bc5 {[%clk 0:01:47]}  Rdd8 {[%clk 0:00:26]} 27. Re7 {[%clk 0:00:44]}  Bxe5 {[%clk 0:00:16]} 28. fxe5 {[%clk 0:00:44]}  Rxe7 {[%clk 0:00:13]} 29. Bxe7 {[%clk 0:00:44]}  Rc8 {[%clk 0:00:13]} 30. e6 {[%clk 0:00:37]}  Re8 {[%clk 0:00:07]} 31. d6 {[%clk 0:00:34]}  Bxe6 {[%clk 0:00:05]} 32. d7 {[%clk 0:00:34]}  Bxd7 {[%clk 0:00:05]} 33. Rxd7 {[%clk 0:00:34]}  b5 {[%clk 0:00:06]} 34. Bf6 {[%clk 0:00:33]}  b4 {[%clk 0:00:05]} 35. axb4 {[%clk 0:00:32]}  axb4 {[%clk 0:00:06]} 36. Rb7 {[%clk 0:00:32]}  h6 {[%clk 0:00:07]} 37. h4 {[%clk 0:00:31]}  b3 {[%clk 0:00:04]} 38. g4 {[%clk 0:00:30]}  g5 {[%clk 0:00:04]} 39. hxg5 {[%clk 0:00:30]}  hxg5 {[%clk 0:00:04]} 40. Rxb3 {[%clk 0:00:28]}  Re4 {[%clk 0:00:04]} 41. Rg3 {[%clk 0:00:23]}  Kh7 {[%clk 0:00:05]} 42. Bxg5 {[%clk 0:00:23]}  Kg6 {[%clk 0:00:04]} 43. Be3 {[%clk 0:00:22]}  Ra4 {[%clk 0:00:03]} 44. Kg2 {[%clk 0:00:17]}  Rc4 {[%clk 0:00:04]} 45. Kf3 {[%clk 0:00:17]}  Ra4 {[%clk 0:00:04]} 46. g5 {[%clk 0:00:17]}  Rc4 {[%clk 0:00:04]} 47. Rh3 {[%clk 0:00:17]}  Kf5 {[%clk 0:00:01]} 48. Rh6 {[%clk 0:00:18]}  Rc7 {[%clk 0:00:01]} 49. Rf6+ {[%clk 0:00:18]} 1-0


[Site "https://www.chess.com"]

[Event "Titled Tuesday Blitz November 08 Early 2022"]
[White "Dahlgren, James Allen"]
[Black "Shuvalova, Polina"]
[WhiteFideId "22256873"]
[BlackFideId "24171760"]
[WhiteElo "2211"]
[BlackElo "2342"]
[Result "0-1"]
[Round "04"]
[TimeControl "180+1"]
[Date "2022.11.09"]
[WhiteClock "0:00:33"]
[BlackClock "0:01:15"]

1. e4 {[%clk 0:02:57]}  c5 {[%clk 0:02:59]} 2. Nc3 {[%clk 0:02:56]}  e6 {[%clk 0:02:53]} 3. f4 {[%clk 0:02:38]}  Nc6 {[%clk 0:02:49]} 4. Nf3 {[%clk 0:02:32]}  d5 {[%clk 0:02:36]} 5. Bb5 {[%clk 0:02:30]}  d4 {[%clk 0:02:34]} 6. Ne2 {[%clk 0:02:16]}  Bd7 {[%clk 0:02:31]} 7. d3 {[%clk 0:02:11]}  Bd6 {[%clk 0:02:28]} 8. O-O {[%clk 0:02:08]}  Nge7 {[%clk 0:02:26]} 9. g4 {[%clk 0:01:59]}  h5 {[%clk 0:02:23]} 10. g5 {[%clk 0:01:58]}  h4 {[%clk 0:02:17]} 11. Bd2 {[%clk 0:01:48]}  Qb6 {[%clk 0:02:13]} 12. Bc4 {[%clk 0:01:42]}  f6 {[%clk 0:02:08]} 13. a4 {[%clk 0:01:35]}  Qc7 {[%clk 0:02:05]} 14. Qe1 {[%clk 0:01:28]}  O-O-O {[%clk 0:02:02]} 15. gxf6 {[%clk 0:01:14]}  gxf6 {[%clk 0:02:02]} 16. Nxh4 {[%clk 0:01:13]}  Rdg8+ {[%clk 0:01:57]} 17. Kh1 {[%clk 0:01:12]}  Ng6 {[%clk 0:01:48]} 18. Nxg6 {[%clk 0:01:11]}  Rxg6 {[%clk 0:01:49]} 19. Rg1 {[%clk 0:00:58]}  Rgh6 {[%clk 0:01:47]} 20. Rg2 {[%clk 0:00:57]}  f5 {[%clk 0:01:44]} 21. e5 {[%clk 0:00:56]}  Be7 {[%clk 0:01:41]} 22. Ng3 {[%clk 0:00:51]}  Nd8 {[%clk 0:01:39]} 23. Qe2 {[%clk 0:00:46]}  Bc6 {[%clk 0:01:33]} 24. Kg1 {[%clk 0:00:43]}  Bxg2 {[%clk 0:01:33]} 25. Qxg2 {[%clk 0:00:42]}  Rxh2 {[%clk 0:01:28]} 26. Qxh2 {[%clk 0:00:43]}  Rxh2 {[%clk 0:01:28]} 27. Kxh2 {[%clk 0:00:44]}  Bh4 {[%clk 0:01:28]} 28. Rg1 {[%clk 0:00:42]}  Qh7 {[%clk 0:01:26]} 29. Be1 {[%clk 0:00:37]}  Bg5+ {[%clk 0:01:22]} 30. Kg2 {[%clk 0:00:34]}  Bxf4 {[%clk 0:01:21]} 31. Kf3 {[%clk 0:00:34]}  Bxe5 {[%clk 0:01:17]} 32. Rh1 {[%clk 0:00:34]}  Qg7 {[%clk 0:01:15]} 33. Bf2 {[%clk 0:00:33]}  Qg4+ {[%clk 0:01:15]} 34. Kg2 {[%clk 0:00:33]}  f4 {[%clk 0:01:15]} 0-1


[Site "https://www.chess.com"]

[Event "Titled Tuesday Blitz November 08 Early 2022"]
[White "Degenbaev, Aziz"]
[Black "Terzi, Alexei"]
[WhiteFideId "13802640"]
[BlackFideId "13505076"]
[WhiteElo "2039"]
[BlackElo "2172"]
[Result "1/2-1/2"]
[Round "04"]
[TimeControl "180+1"]
[Date "2022.11.09"]
[WhiteClock "0:00:12"]
[BlackClock "0:00:41"]

1. c4 {[%clk 0:02:57]}  c5 {[%clk 0:02:59]} 2. Nf3 {[%clk 0:02:57]}  Nc6 {[%clk 0:02:57]} 3. d4 {[%clk 0:02:58]}  cxd4 {[%clk 0:02:58]} 4. Nxd4 {[%clk 0:02:58]}  g6 {[%clk 0:02:58]} 5. e4 {[%clk 0:02:57]}  Nf6 {[%clk 0:02:57]} 6. Nc3 {[%clk 0:02:57]}  d6 {[%clk 0:02:57]} 7. Be2 {[%clk 0:02:56]}  Nxd4 {[%clk 0:02:57]} 8. Qxd4 {[%clk 0:02:56]}  Bg7 {[%clk 0:02:58]} 9. Qd3 {[%clk 0:02:51]}  O-O {[%clk 0:02:56]} 10. O-O {[%clk 0:02:51]}  Be6 {[%clk 0:02:47]} 11. Rb1 {[%clk 0:02:47]}  Nd7 {[%clk 0:02:46]} 12. b3 {[%clk 0:02:44]}  Nc5 {[%clk 0:02:43]} 13. Qc2 {[%clk 0:02:37]}  Bxc3 {[%clk 0:02:39]} 14. Qxc3 {[%clk 0:02:37]}  Nxe4 {[%clk 0:02:40]} 15. Qd4 {[%clk 0:02:34]}  Nf6 {[%clk 0:02:32]} 16. Bh6 {[%clk 0:02:32]}  Re8 {[%clk 0:02:31]} 17. Bg5 {[%clk 0:02:21]}  Nd7 {[%clk 0:02:02]} 18. Bh6 {[%clk 0:02:11]}  f6 {[%clk 0:02:00]} 19. Rfe1 {[%clk 0:01:41]}  Qb6 {[%clk 0:01:53]} 20. Qh4 {[%clk 0:01:30]}  Bf7 {[%clk 0:01:47]} 21. Rbd1 {[%clk 0:01:29]}  a5 {[%clk 0:01:44]} 22. Be3 {[%clk 0:01:22]}  Nc5 {[%clk 0:01:35]} 23. f4 {[%clk 0:01:08]}  a4 {[%clk 0:01:28]} 24. f5 {[%clk 0:01:09]}  axb3 {[%clk 0:01:23]} 25. fxg6 {[%clk 0:01:08]}  hxg6 {[%clk 0:01:22]} 26. axb3 {[%clk 0:01:04]}  Qxb3 {[%clk 0:01:18]} 27. Bd4 {[%clk 0:00:53]}  Ra2 {[%clk 0:01:04]} 28. Rb1 {[%clk 0:00:51]}  Qc2 {[%clk 0:00:52]} 29. Bxc5 {[%clk 0:00:25]}  dxc5 {[%clk 0:00:53]} 30. Rxb7 {[%clk 0:00:26]}  Bxc4 {[%clk 0:00:51]} 31. Qxc4+ {[%clk 0:00:23]}  Kg7 {[%clk 0:00:47]} 32. Qe6 {[%clk 0:00:15]}  Qd2 {[%clk 0:00:41]} 33. Rxe7+ {[%clk 0:00:14]}  Rxe7 {[%clk 0:00:42]} 34. Qxe7+ {[%clk 0:00:14]}  Kh6 {[%clk 0:00:42]} 35. Bf3 {[%clk 0:00:15]}  Qf2+ {[%clk 0:00:39]} 36. Kh1 {[%clk 0:00:14]}  Qd4 {[%clk 0:00:39]} 37. h3 {[%clk 0:00:10]}  Ra1 {[%clk 0:00:39]} 38. Qf8+ {[%clk 0:00:10]}  Kg5 {[%clk 0:00:39]} 39. Rxa1 {[%clk 0:00:10]}  Qxa1+ {[%clk 0:00:40]} 40. Kh2 {[%clk 0:00:10]}  Qe5+ {[%clk 0:00:40]} 41. Kh1 {[%clk 0:00:11]}  Qe1+ {[%clk 0:00:40]} 42. Kh2 {[%clk 0:00:11]}  Qe5+ {[%clk 0:00:40]} 43. Kh1 {[%clk 0:00:12]}  Qe1+ {[%clk 0:00:40]} 44. Kh2 {[%clk 0:00:12]}  Qe5+ {[%clk 0:00:41]} 1/2-1/2


[Site "https://www.chess.com"]

[Event "Titled Tuesday Blitz November 08 Early 2022"]
[White "Donchenko, Alexander"]
[Black "Kim, Sergey"]
[WhiteFideId "24603295"]
[BlackFideId "13700570"]
[WhiteElo "2878"]
[BlackElo "2612"]
[Result "1/2-1/2"]
[Round "04"]
[TimeControl "180+1"]
[Date "2022.11.09"]
[WhiteClock "0:00:04"]
[BlackClock "0:00:22"]

1. c4 {[%clk 0:02:59]}  Nf6 {[%clk 0:02:59]} 2. g3 {[%clk 0:03:00]}  g6 {[%clk 0:02:59]} 3. Bg2 {[%clk 0:03:00]}  Bg7 {[%clk 0:03:00]} 4. Nc3 {[%clk 0:03:01]}  d6 {[%clk 0:03:00]} 5. d4 {[%clk 0:03:01]}  O-O {[%clk 0:03:01]} 6. Nf3 {[%clk 0:03:02]}  Nbd7 {[%clk 0:03:01]} 7. O-O {[%clk 0:03:03]}  e5 {[%clk 0:03:01]} 8. e4 {[%clk 0:03:03]}  exd4 {[%clk 0:03:01]} 9. Nxd4 {[%clk 0:03:03]}  Re8 {[%clk 0:03:02]} 10. h3 {[%clk 0:03:04]}  Nc5 {[%clk 0:03:02]} 11. Re1 {[%clk 0:03:04]}  c6 {[%clk 0:03:02]} 12. Qc2 {[%clk 0:03:04]}  a5 {[%clk 0:03:02]} 13. Be3 {[%clk 0:03:04]}  a4 {[%clk 0:03:02]} 14. Rac1 {[%clk 0:03:05]}  Nfd7 {[%clk 0:02:59]} 15. Rcd1 {[%clk 0:03:04]}  Qa5 {[%clk 0:02:59]} 16. f4 {[%clk 0:03:01]}  Qb4 {[%clk 0:02:56]} 17. Bf1 {[%clk 0:02:57]}  Nb6 {[%clk 0:02:52]} 18. a3 {[%clk 0:02:48]}  Qa5 {[%clk 0:02:52]} 19. Bf2 {[%clk 0:02:47]}  Nbd7 {[%clk 0:02:47]} 20. Nf3 {[%clk 0:02:41]}  Bf8 {[%clk 0:02:42]} 21. g4 {[%clk 0:02:32]}  Nf6 {[%clk 0:02:39]} 22. e5 {[%clk 0:02:31]}  dxe5 {[%clk 0:02:36]} 23. Nxe5 {[%clk 0:02:32]}  Bg7 {[%clk 0:02:25]} 24. Bg2 {[%clk 0:02:25]}  Nfd7 {[%clk 0:02:12]} 25. Nxf7 {[%clk 0:01:47]}  Kxf7 {[%clk 0:02:10]} 26. Rxe8 {[%clk 0:01:44]}  Kxe8 {[%clk 0:02:10]} 27. Qe2+ {[%clk 0:01:43]}  Kf8 {[%clk 0:02:07]} 28. Re1 {[%clk 0:01:38]}  Qd8 {[%clk 0:02:06]} 29. f5 {[%clk 0:01:32]}  Bf6 {[%clk 0:01:54]} 30. fxg6 {[%clk 0:01:17]}  hxg6 {[%clk 0:01:53]} 31. h4 {[%clk 0:00:51]}  Bxh4 {[%clk 0:01:14]} 32. Bxh4 {[%clk 0:00:50]}  Qxh4 {[%clk 0:01:13]} 33. Qe8+ {[%clk 0:00:50]}  Kg7 {[%clk 0:01:09]} 34. Re7+ {[%clk 0:00:49]}  Kh6 {[%clk 0:01:09]} 35. Ne4 {[%clk 0:00:10]}  Nxe4 {[%clk 0:01:05]} 36. Rxe4 {[%clk 0:00:10]}  Nf6 {[%clk 0:00:50]} 37. Qf8+ {[%clk 0:00:07]}  Kg5 {[%clk 0:00:45]} 38. Re5+ {[%clk 0:00:07]}  Bf5 {[%clk 0:00:44]} 39. Qxa8 {[%clk 0:00:05]}  Qxg4 {[%clk 0:00:34]} 40. Qa5 {[%clk 0:00:04]}  Qd4+ {[%clk 0:00:33]} 41. Kh1 {[%clk 0:00:03]}  Ng4 {[%clk 0:00:29]} 42. Re2 {[%clk 0:00:02]}  Nf2+ {[%clk 0:00:24]} 43. Kh2 {[%clk 0:00:02]}  Ng4+ {[%clk 0:00:22]} 44. Kh1 {[%clk 0:00:03]}  Nf2+ {[%clk 0:00:22]} 45. Kh2 {[%clk 0:00:03]}  Ng4+ {[%clk 0:00:22]} 46. Kh1 {[%clk 0:00:04]} 1/2-1/2


[Site "https://www.chess.com"]